bitfinex/quotes_BTCUSD_20250829
["timestamp","ask_amount","ask_price","bid_price","bid_amount"]
[1756460299520,1.22606396,109940.0,109920.0,0.35051309]
[1756460299727,0.1915686,109940.0,109930.0,0.18732395]
[1756460299932,0.1904186,109940.0,109930.0,0.18732395]
[1756460300134,0.1904186,109940.0,109930.0,0.18832395]
[1756460300341,0.1904186,109940.0,109930.0,0.18932395]
[1756460300482,0.1915686,109940.0,109930.0,0.16267]
[1756460300685,0.1915686,109940.0,109930.0,0.16394417]
[1756460300937,0.18193395,109930.0,109920.0,0.19427309]
[1756460301144,0.19043511,109930.0,109920.0,0.35270309]
[1756460301350,0.19043511,109930.0,109920.0,0.19642309]
[1756460301567,0.19043511,109930.0,109920.0,0.1873405]
[1756460301789,0.19043511,109930.0,109920.0,0.3436205]
[1756460301996,0.19043511,109930.0,109920.0,0.00639]
[1756460302171,0.19158511,109930.0,109920.0,0.16467]
[1756460302601,0.19158511,109930.0,109920.0,0.16667]
[1756460302796,1.31437679,109930.0,109920.0,0.005]
[1756460303009,1.92230187,109930.0,109920.0,0.005]
[1756460303257,1.95038287,109930.0,109920.0,0.005]
[1756460303749,1.95038287,109930.0,109920.0,0.002]
[1756460304162,1.95038287,109930.0,109920.0,0.004]
[1756460304580,1.95038287,109930.0,109920.0,0.002]
[1756460304969,1.95038287,109930.0,109920.0,0.003]
[1756460305585,1.95038287,109930.0,109920.0,0.001]
[1756460305806,1.95038287,109930.0,109920.0,0.002]
[1756460306391,1.95038287,109930.0,109920.0,0.001]
[1756460307856,1.95042215,109930.0,109920.0,0.001]
[1756460308283,1.9700438,109930.0,109920.0,0.001]
[1756460310998,1.9693238,109930.0,109920.0,0.001]
[1756460311633,1.9692838,109930.0,109920.0,0.001]
[1756460313277,1.94966683,109930.0,109920.0,0.001]
[1756460314095,1.97000932,109930.0,109920.0,0.001]
[1756460314760,1.81380932,109930.0,109920.0,0.001]
[1756460315066,1.98412939,109930.0,109920.0,0.001]
[1756460315214,1.98612939,109930.0,109920.0,0.001]
[1756460315419,0.5219505,109920.0,109910.0,0.07063082]
[1756460315628,1.58837974,109920.0,109910.0,0.07071757]
[1756460315834,1.67782606,109920.0,109910.0,0.07071757]
[1756460316150,1.79348638,109920.0,109910.0,8.675e-05]
[1756460316513,1.79348638,109920.0,109910.0,0.00108675]
[1756460317410,2.82798174,109920.0,109910.0,0.00108675]
[1756460317721,1.79348638,109920.0,109910.0,0.00108675]
[1756460318494,1.78496083,109920.0,109910.0,0.00108675]
[1756460318669,1.8130846,109920.0,109910.0,0.00108675]
[1756460318877,1.95226036,109920.0,109910.0,0.00108675]
[1756460319074,1.96928495,109920.0,109910.0,0.00108675]
[1756460321406,1.96932495,109920.0,109910.0,0.00108675]
[1756460321987,0.93482959,109920.0,109910.0,0.00108675]
[1756460322193,1.96932278,109920.0,109910.0,0.00108675]
[1756460322403,1.94971113,109920.0,109910.0,0.00108675]
[1756460323157,2.39181113,109920.0,109910.0,0.00108675]
[1756460323800,1.35731577,109920.0,109910.0,0.00108675]
[1756460323981,2.39181113,109920.0,109910.0,0.00108675]
[1756460325537,2.23557113,109920.0,109910.0,0.00108675]
[1756460326088,2.39197113,109920.0,109910.0,0.00108675]
[1756460326504,2.41158085,109920.0,109910.0,0.00108675]
[1756460327522,2.4115856,109920.0,109910.0,0.00108675]
[1756460328143,2.42582667,109920.0,109910.0,0.00108675]
[1756460329197,2.42584335,109920.0,109910.0,0.00108675]
[1756460329739,3.46033871,109920.0,109910.0,0.00108675]
[1756460330202,2.42584335,109920.0,109910.0,0.00108675]
[1756460330400,1.39134799,109920.0,109910.0,0.00108675]
[1756460330604,2.4305211,109920.0,109910.0,0.00108675]
[1756460330804,2.42999137,109920.0,109910.0,0.00108675]
[1756460331250,2.27367137,109920.0,109910.0,0.00108675]
[1756460331456,2.42995137,109920.0,109910.0,0.00314675]
[1756460331562,2.4157103,109920.0,109910.0,8.675e-05]
[1756460331963,2.4167103,109920.0,109910.0,8.675e-05]
[1756460332319,2.4157103,109920.0,109910.0,8.675e-05]
[1756460332719,2.4157103,109920.0,109910.0,0.00108675]
[1756460333562,2.44022839,109920.0,109910.0,0.00108675]
[1756460334529,2.44022839,109920.0,109910.0,8.675e-05]
[1756460335013,2.44122839,109920.0,109910.0,8.675e-05]
[1756460335241,2.45547015,109920.0,109910.0,8.675e-05]
[1756460335476,2.45747015,109920.0,109910.0,8.675e-05]
[1756460335698,3.49196551,109920.0,109910.0,8.675e-05]
[1756460335938,3.22262086,109920.0,109910.0,8.675e-05]
[1756460336162,3.40459868,109920.0,109910.0,8.675e-05]
[1756460338060,3.40359868,109920.0,109910.0,8.675e-05]
[1756460338501,3.40159868,109920.0,109910.0,0.00108675]
[1756460338774,3.39519991,109920.0,109910.0,0.00108675]
[1756460338998,3.40159971,109920.0,109910.0,8.675e-05]
[1756460339463,3.40451971,109920.0,109910.0,8.675e-05]
[1756460339672,3.38748754,109920.0,109910.0,8.675e-05]
[1756460339892,3.24835725,109920.0,109910.0,8.675e-05]
[1756460340118,3.40451725,109920.0,109910.0,8.675e-05]
[1756460340338,3.24835725,109920.0,109910.0,8.675e-05]
[1756460340570,3.40447725,109920.0,109910.0,0.00314675]
[1756460340793,3.24835725,109920.0,109910.0,0.00509675]
[1756460341022,2.36994189,109920.0,109910.0,0.00509675]
[1756460341704,2.36894189,109920.0,109910.0,0.00314675]
[1756460341921,2.21086189,109920.0,109910.0,0.00509675]
[1756460342154,2.36694189,109920.0,109910.0,0.00609675]
[1756460343409,2.36694189,109920.0,109910.0,0.00414675]
[1756460343663,2.36694189,109920.0,109910.0,0.00418675]
[1756460343862,2.36694189,109920.0,109910.0,0.00613675]
[1756460344068,2.36694189,109920.0,109910.0,0.00418675]
[1756460344278,2.36694189,109920.0,109910.0,0.00613675]
[1756460344491,2.35270013,109920.0,109910.0,0.00613675]
[1756460345661,2.25940958,109920.0,109910.0,0.00613675]
[1756460345879,2.28392767,109920.0,109910.0,0.00021067]
[1756460346099,0.18198362,109900.0,109890.0,0.08294582]
[1756460346336,0.21399059,109900.0,109890.0,0.08489582]
[1756460347467,0.25405674,109900.0,109890.0,0.08489582]
[1756460347877,0.25405674,109900.0,109890.0,0.08795582]
[1756460348093,0.25405674,109900.0,109890.0,0.08995582]
[1756460348504,0.25405674,109900.0,109890.0,0.01705]
[1756460348631,1.2885521,109900.0,109890.0,0.01705]
[1756460348863,0.25405674,109900.0,109890.0,0.01905]
[1756460349075,0.24553123,109900.0,109890.0,0.01905]
[1756460349278,0.25407175,109900.0,109890.0,0.01705]
[1756460349699,0.25407175,109900.0,109890.0,0.01805]
[1756460349898,1.28856711,109900.0,109890.0,0.01605]
[1756460350540,1.26156711,109900.0,109890.0,0.01609]
[1756460350740,1.50801343,109900.0,109890.0,0.01609]
[1756460350954,1.86768585,109900.0,109890.0,0.01303]
[1756460351162,1.87074585,109900.0,109890.0,0.01108]
[1756460351590,1.87074585,109900.0,109890.0,0.01208]
[1756460351796,0.83625049,109900.0,109890.0,0.01208]
[1756460352010,1.95904217,109900.0,109890.0,0.01008]
[1756460352643,1.92702019,109900.0,109890.0,0.01008]
[1756460352852,1.95902212,109900.0,109890.0,0.01008]
[1756460356304,1.959021,109900.0,109890.0,0.01008]
[1756460359750,1.93341945,109900.0,109890.0,0.01008]
[1756460359954,1.95902089,109900.0,109890.0,0.01008]
[1756460362796,1.95902089,109900.0,109890.0,0.01209]
[1756460362797,0.92146553,109900.0,109890.0,0.01209]
[1756460363165,1.95596089,109900.0,109890.0,0.01209]
[1756460363518,1.79996089,109900.0,109890.0,0.01209]
[1756460363900,1.95636089,109900.0,109890.0,0.01209]
[1756460364555,1.79996089,109900.0,109890.0,0.01209]
[1756460364730,1.95636089,109900.0,109890.0,0.01209]
[1756460367422,1.95930089,109900.0,109890.0,0.01008]
[1756460368930,1.95918089,109900.0,109890.0,0.01008]
[1756460369177,0.92174553,109900.0,109890.0,0.01209]
[1756460369391,2.08692944,109900.0,109890.0,0.01209]
[1756460370235,0.92174553,109900.0,109890.0,0.01209]
[1756460370480,2.08684544,109900.0,109890.0,0.01209]
[1756460371109,2.08978544,109900.0,109890.0,0.01309]
[1756460371510,0.92460153,109900.0,109890.0,0.01108]
[1756460371719,2.08978544,109900.0,109890.0,0.01309]
[1756460371924,2.08684544,109900.0,109890.0,0.01309]
[1756460373659,2.08684544,109900.0,109890.0,0.01409]
[1756460374190,2.08684544,109900.0,109890.0,0.01209]
[1756460374981,0.92166153,109900.0,109890.0,0.01209]
[1756460375187,2.08684544,109900.0,109890.0,0.01209]
[1756460376015,2.08684544,109900.0,109890.0,0.01309]
[1756460376182,2.08978544,109900.0,109890.0,0.01108]
[1756460376549,2.08684544,109900.0,109890.0,0.01309]
[1756460376815,2.08672544,109900.0,109890.0,0.01409]
[1756460377436,2.08673506,109900.0,109890.0,0.01409]
[1756460377645,0.92155115,109900.0,109890.0,0.01409]
[1756460378091,0.92151115,109900.0,109890.0,0.01724]
[1756460378310,1.84235874,109900.0,109890.0,0.01724]
[1756460378535,1.99835874,109900.0,109890.0,0.01724]
[1756460378755,1.99835874,109900.0,109890.0,0.01624]
[1756460379618,1.99835874,109900.0,109890.0,0.01724]
[1756460380074,1.99835874,109900.0,109890.0,0.01409]
[1756460380311,1.99835874,109900.0,109890.0,0.01309]
[1756460380523,0.83317483,109900.0,109890.0,0.01309]
[1756460380775,0.25405609,109900.0,109890.0,0.19824018]
[1756460380980,1.36840563,109900.0,109890.0,0.19824018]
[1756460381188,1.39191123,109900.0,109890.0,0.19824018]
[1756460381410,1.39191123,109900.0,109890.0,0.19924018]
[1756460381615,0.22672732,109900.0,109890.0,0.19924018]
[1756460381820,0.0447437,109900.0,109890.0,1.43505491]
[1756460382270,0.03204355,109900.0,109890.0,1.43505491]
[1756460383195,1.55243525,109920.0,109900.0,0.18198362]
[1756460383414,1.51075089,109920.0,109900.0,0.33794362]
[1756460383626,1.51075089,109920.0,109910.0,0.00516]
[1756460383627,1.85075089,109920.0,109910.0,0.00516]
[1756460383854,0.04017682,109920.0,109910.0,0.18712706]
[1756460384068,0.22212732,109920.0,109910.0,0.18712706]
[1756460384288,0.19476432,109920.0,109910.0,0.18712706]
[1756460384531,0.19576432,109920.0,109910.0,0.18712706]
[1756460384961,0.19476432,109920.0,109910.0,0.18712706]
[1756460385168,0.19676432,109920.0,109910.0,0.34312706]
[1756460385376,0.19776432,109920.0,109910.0,0.34312706]
[1756460385585,0.19576432,109920.0,109910.0,0.34312706]
[1756460385766,0.19776432,109920.0,109910.0,0.34312706]
[1756460386165,0.19776432,109920.0,109910.0,0.18712706]
[1756460386365,0.19776432,109920.0,109910.0,0.34308706]
[1756460386594,0.19671432,109920.0,109910.0,0.15793]
[1756460386793,0.18196706,109910.0,109900.0,0.15907]
[1756460387001,0.18196706,109910.0,109900.0,0.00516]
[1756460387002,1.21912029,109910.0,109900.0,0.00516]
[1756460387208,0.18198362,109900.0,109890.0,0.491901]
[1756460387420,1.21717029,109910.0,109900.0,0.18198362]
[1756460387623,0.18196706,109910.0,109900.0,0.18399362]
[1756460387826,0.18196706,109910.0,109900.0,0.18714362]
[1756460388000,0.18196706,109910.0,109900.0,0.18814362]
[1756460388428,0.18196706,109910.0,109900.0,0.18914362]
[1756460389178,0.18196706,109910.0,109900.0,0.00716]
[1756460389179,0.18397706,109910.0,109900.0,0.00716]
[1756460390146,1.39804507,109920.0,109900.0,0.18914362]
[1756460390347,0.18196706,109910.0,109900.0,0.18914362]
[1756460391143,0.18397706,109910.0,109900.0,0.34410362]
[1756460392960,0.18196706,109910.0,109900.0,0.34510362]
[1756460393170,0.22212732,109920.0,109910.0,0.18196706]
[1756460393377,0.18196706,109910.0,109900.0,0.34283362]
[1756460393575,0.18196706,109910.0,109900.0,0.34497362]
[1756460394159,1.22996755,109920.0,109900.0,0.34497362]
[1756460394421,0.18397706,109910.0,109900.0,0.00414]
[1756460394718,0.18397706,109910.0,109900.0,0.34200362]
[1756460395210,0.19248829,109910.0,109900.0,0.34100362]
[1756460395553,0.19248829,109910.0,109900.0,0.34397362]
[1756460395750,0.19248829,109910.0,109900.0,0.34297362]
[1756460396264,0.19248829,109910.0,109900.0,0.34397362]
[1756460396921,0.19047829,109910.0,109900.0,0.34497362]
[1756460397125,0.00851123,109910.0,109900.0,0.34497362]
[1756460397291,0.19047829,109910.0,109900.0,0.34497362]
[1756460398839,0.00851123,109910.0,109900.0,0.34497362]
[1756460399393,0.19047829,109910.0,109900.0,0.34497362]
[1756460399594,0.19047829,109910.0,109900.0,0.18909362]
[1756460399824,0.19248829,109910.0,109900.0,0.34200362]
[1756460400214,0.00851123,109910.0,109900.0,0.34497362]
[1756460400429,0.19047829,109910.0,109900.0,0.34497362]
[1756460400628,0.00851123,109910.0,109900.0,0.34497362]
[1756460401268,0.18196706,109910.0,109900.0,0.34497362]
[1756460401471,0.19048017,109910.0,109900.0,0.34497362]
[1756460401678,0.00851311,109910.0,109900.0,0.34497362]
[1756460401887,0.23539842,109920.0,109910.0,0.18196706]
[1756460402089,0.26082014,109920.0,109910.0,0.18707706]
[1756460402513,0.0255878,109920.0,109910.0,1.38120743]
[1756460402710,4.774e-05,109920.0,109910.0,1.45120743]
[1756460403958,0.00104774,109920.0,109910.0,1.45420743]
[1756460404372,0.00204774,109920.0,109910.0,1.79420743]
[1756460404577,0.00104774,109920.0,109910.0,1.80844443]
[1756460404987,0.00104774,109920.0,109910.0,1.96732443]
[1756460405198,0.00104774,109920.0,109910.0,1.81144443]
[1756460405406,0.00104774,109920.0,109910.0,1.96732443]
[1756460409525,0.00104774,109920.0,109910.0,1.81144443]
[1756460409728,0.00104774,109920.0,109910.0,1.96728443]
[1756460411697,0.00104774,109920.0,109910.0,3.00248766]
[1756460412114,0.00104774,109920.0,109910.0,3.05248766]
[1756460412528,0.00104774,109920.0,109910.0,3.10248766]
[1756460413154,0.00104774,109920.0,109910.0,3.12140129]
[1756460413363,0.19408692,109970.0,109960.0,0.18188432]
[1756460413576,0.22810067,109970.0,109960.0,0.33772432]
[1756460413792,0.22810067,109970.0,109960.0,0.15584]
[1756460414896,0.18188432,109960.0,109950.0,0.15584]
[1756460415082,0.18190086,109950.0,109940.0,0.2518774]
[1756460415230,1.2476328,109950.0,109940.0,0.3377574]
[1756460415880,1.2476328,109950.0,109940.0,0.1819174]
[1756460416080,1.2476328,109950.0,109940.0,0.1558]
[1756460416277,0.21242957,109950.0,109940.0,0.3377174]
[1756460418174,0.1819174,109940.0,109930.0,0.18190503]
[1756460418379,0.21237882,109940.0,109930.0,0.18190503]
[1756460418583,0.21237882,109940.0,109930.0,0.1558]
[1756460418781,0.21237882,109940.0,109930.0,0.33773395]
[1756460419263,0.19404191,109940.0,109930.0,0.1558]
[1756460419422,0.19604191,109940.0,109930.0,0.1558]
[1756460419624,0.19604191,109940.0,109930.0,0.1578]
[1756460420180,0.19604191,109940.0,109930.0,0.33773395]
[1756460420384,0.19604191,109940.0,109930.0,0.33873395]
[1756460420743,0.19604191,109940.0,109930.0,0.001]
[1756460420948,0.19604191,109940.0,109930.0,0.1568]
[1756460421195,0.19604191,109940.0,109930.0,0.33873395]
[1756460421950,0.19604191,109940.0,109930.0,0.33773395]
[1756460422147,0.1849174,109940.0,109930.0,0.33873395]
[1756460422782,0.1849174,109940.0,109930.0,0.33773395]
[1756460423386,0.1849174,109940.0,109930.0,0.1558]
[1756460424183,0.1878774,109940.0,109930.0,0.1558]
[1756460424429,0.1849174,109940.0,109930.0,0.1558]
[1756460424800,0.18193395,109930.0,109920.0,0.06996]
[1756460425050,0.1819505,109920.0,109910.0,0.07063082]
[1756460425284,0.1839505,109920.0,109910.0,0.41350788]
[1756460426170,0.1839505,109920.0,109910.0,0.23154082]
[1756460426440,0.1839505,109920.0,109910.0,0.23046082]
[1756460426923,0.1839505,109920.0,109910.0,0.23246082]
[1756460427128,0.1839505,109920.0,109910.0,0.41442788]
[1756460427330,0.19033244,109920.0,109910.0,0.34379706]
[1756460427467,0.19033244,109920.0,109910.0,0.34179706]
[1756460428099,0.1839505,109920.0,109910.0,0.33979706]
[1756460428264,0.19033344,109920.0,109910.0,0.34387706]
[1756460428446,0.19133344,109920.0,109910.0,0.34387706]
[1756460428651,0.18933344,109920.0,109910.0,0.34387706]
[1756460428905,0.18933344,109920.0,109910.0,0.34287706]
[1756460429145,0.18833344,109920.0,109910.0,0.34287706]
[1756460429724,0.19033344,109920.0,109910.0,0.33979706]
[1756460430032,0.19033344,109920.0,109910.0,0.34079706]
[1756460430263,0.19033344,109920.0,109910.0,0.00611]
[1756460430468,0.19033344,109920.0,109910.0,0.34387706]
[1756460430671,0.1839505,109920.0,109910.0,0.33876706]
[1756460431098,0.1839505,109920.0,109910.0,0.1568]
[1756460431272,0.20948429,109920.0,109910.0,0.33876706]
[1756460431491,0.21386887,109920.0,109910.0,0.34387706]
[1756460431659,0.23051506,109920.0,109910.0,0.34387706]
[1756460432297,0.23251506,109920.0,109910.0,0.34387706]
[1756460432521,0.23051506,109920.0,109910.0,0.34387706]
[1756460432870,0.2305233,109920.0,109910.0,0.34387706]
[1756460434348,0.0485728,109920.0,109910.0,0.34387706]
[1756460436229,0.03154478,109920.0,109910.0,0.34387706]
[1756460436371,0.21549528,109920.0,109910.0,0.18807706]
[1756460436581,0.23251784,109920.0,109910.0,0.34387706]
[1756460437204,0.21549528,109920.0,109910.0,0.34387706]
[1756460437567,0.03354478,109920.0,109910.0,0.34387706]
[1756460437772,0.03154478,109920.0,109910.0,0.34387706]
[1756460439845,0.02303077,109920.0,109910.0,0.34387706]
[1756460440062,0.0315414,109920.0,109910.0,0.34387706]
[1756460440270,0.00851063,109920.0,109910.0,1.46737661]
[1756460441197,0.2320258,109940.0,109930.0,0.18193395]
[1756460441410,0.2554308,109940.0,109930.0,0.18704395]
[1756460441643,0.28078934,109940.0,109930.0,0.33773395]
[1756460441848,0.06313025,109940.0,109930.0,1.37804718]
[1756460442061,0.00851091,109940.0,109930.0,1.37804718]
[1756460442909,0.01051091,109940.0,109930.0,1.37804718]
[1756460443567,0.01051236,109940.0,109930.0,1.37804718]
[1756460443783,0.01151236,109940.0,109930.0,1.37804718]
[1756460443998,0.01151218,109940.0,109930.0,1.37804718]
[1756460444454,0.01051218,109940.0,109930.0,1.5363035]
[1756460444855,0.01051218,109940.0,109930.0,1.5373035]
[1756460445073,0.002,109940.0,109930.0,1.5372635]
[1756460445525,0.20532195,109960.0,109950.0,0.18190086]
[1756460445767,0.23294723,109960.0,109950.0,0.33766086]
[1756460445951,0.05106254,109960.0,109950.0,0.34277086]
[1756460446214,0.23294686,109960.0,109950.0,0.34277086]
[1756460447031,0.23394686,109960.0,109950.0,0.34277086]
[1756460447245,0.23594686,109960.0,109950.0,0.34277086]
[1756460447569,0.25018126,109960.0,109950.0,0.34277086]
[1756460448954,0.05127147,109960.0,109950.0,0.34277086]
[1756460449167,0.04927147,109960.0,109950.0,0.34277086]
[1756460449655,0.03503707,109960.0,109950.0,0.34277086]
[1756460449895,0.05802589,109960.0,109950.0,0.34277086]
[1756460450104,0.05597589,109960.0,109950.0,0.34277086]
[1756460451637,0.05497589,109960.0,109950.0,0.34277086]
[1756460452347,0.05297589,109960.0,109950.0,0.34277086]
[1756460452813,0.05297589,109960.0,109950.0,0.34377086]
[1756460453449,0.05085452,109960.0,109950.0,0.34377086]
[1756460453864,0.05085452,109960.0,109950.0,0.34373086]
[1756460454072,0.04234162,109960.0,109950.0,0.34373086]
[1756460454297,0.00858597,109960.0,109950.0,1.46723041]
[1756460454536,0.00858597,109960.0,109950.0,1.53786123]
[1756460454973,0.00858597,109960.0,109950.0,1.60782123]
[1756460455185,8.691e-05,109960.0,109950.0,1.60782123]
[1756460455399,8.691e-05,109960.0,109950.0,1.94782123]
[1756460455850,8.691e-05,109960.0,109950.0,2.98302446]
[1756460456082,8.691e-05,109960.0,109950.0,1.94782123]
[1756460456753,8.691e-05,109960.0,109950.0,2.83030446]
[1756460457276,8.691e-05,109960.0,109950.0,1.79510123]
[1756460457494,8.691e-05,109960.0,109950.0,0.68826718]
[1756460457710,8.691e-05,109960.0,109950.0,2.91439364]
[1756460457926,8.691e-05,109960.0,109950.0,1.88219041]
[1756460459442,8.691e-05,109960.0,109950.0,1.72647041]
[1756460459587,8.691e-05,109960.0,109950.0,1.88215041]
[1756460464331,0.18183629,109990.0,109980.0,0.18185124]
[1756460464541,0.18183629,109990.0,109980.0,0.33753124]
[1756460464542,0.19148393,109990.0,109980.0,0.33753124]
[1756460465061,0.19148393,109990.0,109980.0,0.15568]
[1756460465718,0.19248393,109990.0,109980.0,0.15568]
[1756460466130,0.19248393,109990.0,109970.0,0.29220847]
[1756460466335,0.03201646,109990.0,109980.0,0.15568]
[1756460466565,0.03201646,109990.0,109980.0,0.33753124]
[1756460466938,0.03158646,109990.0,109980.0,0.33753124]
[1756460467161,0.05345218,109990.0,109980.0,0.33753124]
[1756460467384,0.05345218,109990.0,109980.0,0.15568]
[1756460467591,0.05445218,109990.0,109980.0,0.15568]
[1756460467772,0.23628689,109990.0,109980.0,0.15568]
[1756460468721,0.05345218,109990.0,109980.0,0.15568]
[1756460468938,0.23528689,109990.0,109980.0,0.15864]
[1756460469142,0.23628689,109990.0,109980.0,0.15568]
[1756460470577,0.23559689,109990.0,109980.0,0.16075]
[1756460472155,0.23628689,109990.0,109980.0,0.16075]
[1756460472400,0.23559689,109990.0,109980.0,0.16075]
[1756460472615,0.23628689,109990.0,109980.0,0.00296]
[1756460472815,0.18185124,109980.0,109970.0,1.23682345]
[1756460473040,0.19033142,109980.0,109970.0,1.57644123]
[1756460473270,0.19033142,109980.0,109970.0,1.42080123]
[1756460473485,0.19033142,109980.0,109970.0,0.20373022]
[1756460473703,0.19035352,109980.0,109970.0,0.20373022]
[1756460473907,0.19035352,109980.0,109970.0,0.35937022]
[1756460474110,0.18185124,109980.0,109970.0,0.35937022]
[1756460474319,0.19035613,109980.0,109970.0,0.20373022]
[1756460474528,0.19104613,109980.0,109970.0,0.20162022]
[1756460474966,0.19104613,109980.0,109970.0,0.35937022]
[1756460475186,0.19104613,109980.0,109970.0,0.36037022]
[1756460476212,0.19104613,109980.0,109970.0,0.35826022]
[1756460477454,0.19104613,109980.0,109970.0,0.36037022]
[1756460479119,0.20807506,109980.0,109970.0,0.36037022]
[1756460479346,0.20807506,109980.0,109970.0,0.2720839]
[1756460480132,0.20807506,109980.0,109970.0,0.1143239]
[1756460480376,0.20807506,109980.0,109970.0,0.2699239]
[1756460480596,0.18186778,109970.0,109960.0,0.00293]
[1756460480798,0.18186778,109970.0,109960.0,0.24682632]
[1756460480799,0.2074016,109970.0,109960.0,0.24682632]
[1756460480926,0.21447995,109970.0,109960.0,0.24682632]
[1756460481151,0.21449112,109970.0,109960.0,0.24682632]
[1756460481576,0.21449112,109970.0,109960.0,0.24898632]
[1756460481881,0.20810277,109970.0,109960.0,0.16269]
[1756460482079,0.21449426,109970.0,109960.0,0.16253]
[1756460483672,0.21449426,109970.0,109960.0,0.16469]
[1756460484512,0.21449426,109970.0,109960.0,0.16253]
[1756460484727,0.21453348,109970.0,109960.0,0.16253]
[1756460484975,1.35767957,109970.0,109960.0,0.04576393]
[1756460485196,1.26938325,109970.0,109960.0,0.20136393]
[1756460485402,1.26938325,109970.0,109960.0,0.19248057]
[1756460486423,0.23418002,109970.0,109960.0,0.19248057]
[1756460489172,0.21453348,109970.0,109960.0,0.19248057]
[1756460489614,0.21453348,109970.0,109960.0,0.19252057]
[1756460490179,0.21453348,109970.0,109960.0,0.19545057]
[1756460490532,0.21453348,109970.0,109960.0,0.03985057]
[1756460490730,0.21453348,109970.0,109960.0,0.19545057]
[1756460491135,0.21453348,109970.0,109960.0,0.19252057]
[1756460491735,1.24973671,109970.0,109960.0,0.19252057]
[1756460492370,1.24973671,109970.0,109960.0,0.15564]
[1756460492581,1.67803303,109970.0,109960.0,4e-05]
[1756460492780,1.69808743,109970.0,109960.0,4e-05]
[1756460493028,1.72543743,109970.0,109960.0,4e-05]
[1756460493984,1.72500743,109970.0,109960.0,4e-05]
[1756460494382,0.6908042,109970.0,109960.0,4e-05]
[1756460494583,1.88160743,109970.0,109960.0,4e-05]
[1756460494783,1.88260743,109970.0,109960.0,4e-05]
[1756460495205,1.8666591,109970.0,109960.0,4e-05]
[1756460495409,1.88155794,109970.0,109960.0,4e-05]
[1756460495607,1.85163173,109970.0,109960.0,4e-05]
[1756460495808,1.8805536,109970.0,109960.0,4e-05]
[1756460496298,1.8835536,109970.0,109960.0,4e-05]
[1756460496520,1.8639292,109970.0,109960.0,4e-05]
[1756460496710,1.7083292,109970.0,109960.0,4e-05]
[1756460496931,1.7083292,109970.0,109960.0,0.00297]
[1756460496932,0.74042965,109970.0,109960.0,0.00297]
[1756460497151,0.74242965,109970.0,109960.0,0.00297]
[1756460497370,1.77763288,109970.0,109960.0,0.00297]
[1756460498080,1.77263288,109970.0,109960.0,0.00297]
[1756460498319,1.77463288,109970.0,109960.0,0.00297]
[1756460498779,1.77263288,109970.0,109960.0,0.00297]
[1756460498987,1.8609292,109970.0,109960.0,0.00297]
[1756460499179,1.8619292,109970.0,109960.0,0.00297]
[1756460499958,1.8619292,109970.0,109960.0,4e-05]
[1756460500367,0.82672597,109970.0,109960.0,0.00297]
[1756460500578,1.8619292,109970.0,109960.0,4e-05]
[1756460505828,1.83851983,109970.0,109960.0,4e-05]
[1756460506036,1.86193638,109970.0,109960.0,4e-05]
[1756460506436,1.86193762,109970.0,109960.0,4e-05]
[1756460508187,1.70633762,109970.0,109960.0,4e-05]
[1756460508353,1.86193762,109970.0,109960.0,4e-05]
[1756460509417,0.82673439,109970.0,109960.0,0.00317]
[1756460509621,1.86193762,109970.0,109960.0,0.00525]
[1756460509828,1.86189762,109970.0,109960.0,0.00525]
[1756460510025,1.86189762,109970.0,109960.0,0.00317]
[1756460511310,1.86179257,109970.0,109960.0,0.00317]
[1756460511519,1.77349625,109970.0,109960.0,0.00317]
[1756460512872,1.77349625,109970.0,109960.0,4e-05]
[1756460513084,1.79314247,109970.0,109960.0,4e-05]
[1756460513303,1.79314557,109970.0,109960.0,4e-05]
[1756460513889,1.79314557,109970.0,109960.0,0.00317]
[1756460515792,1.79314557,109970.0,109960.0,0.00525]
[1756460516194,1.88144189,109970.0,109960.0,0.00525]
[1756460516397,1.85589741,109970.0,109960.0,0.00525]
[1756460516609,0.84630214,109970.0,109960.0,0.00525]
[1756460516792,1.87510662,109970.0,109960.0,0.00525]
[1756460516992,1.88150537,109970.0,109960.0,0.00525]
[1756460518893,1.88150537,109970.0,109960.0,0.00317]
[1756460519512,1.88150777,109970.0,109960.0,0.00525]
[1756460519712,0.75800822,109970.0,109960.0,0.00525]
[1756460519945,1.79321145,109970.0,109960.0,0.00525]
[1756460520389,1.79321145,109970.0,109960.0,4e-05]
[1756460520606,0.75800822,109970.0,109960.0,0.00317]
[1756460520809,1.79321145,109970.0,109960.0,0.00317]
[1756460521782,1.79321145,109970.0,109960.0,0.00525]
[1756460521983,1.88150777,109970.0,109960.0,0.00525]
[1756460523443,1.72594777,109970.0,109960.0,0.00525]
[1756460523676,1.88146777,109970.0,109960.0,0.00525]
[1756460524652,1.88146777,109970.0,109960.0,0.00317]
[1756460525527,0.41727822,109970.0,109960.0,0.00525]
[1756460525748,0.23451327,109970.0,109960.0,1.04045323]
[1756460525953,0.20848713,109970.0,109960.0,0.00525]
[1756460526165,0.21489194,109970.0,109960.0,0.00752355]
[1756460526568,1.25009517,109970.0,109960.0,0.00525]
[1756460526795,1.24909517,109970.0,109960.0,0.00525]
[1756460526995,0.21389194,109970.0,109960.0,0.00525]
[1756460527538,0.21489194,109970.0,109960.0,0.00525]
[1756460527849,0.21589194,109970.0,109960.0,0.00525]
[1756460528051,0.21489194,109970.0,109960.0,0.00525]
[1756460528663,1.25009517,109970.0,109960.0,0.00525]
[1756460529337,1.24909517,109970.0,109960.0,0.18713432]
[1756460529473,1.23201566,109970.0,109960.0,0.00625]
[1756460529696,1.24908055,109970.0,109960.0,0.00625]
[1756460530053,1.24908055,109970.0,109960.0,0.00525]
[1756460530547,1.24908055,109970.0,109960.0,0.00625]
[1756460531529,1.24908055,109970.0,109960.0,0.18813432]
[1756460531746,1.24908055,109970.0,109960.0,0.18713432]
[1756460532113,1.24908055,109970.0,109960.0,0.18813432]
[1756460532527,0.03200954,109970.0,109960.0,0.18813432]
[1756460532971,0.02560473,109970.0,109960.0,0.18813432]
[1756460534285,0.20747251,109970.0,109960.0,0.34661432]
[1756460536310,0.02560473,109970.0,109960.0,0.34661432]
[1756460536569,1.37557447,109980.0,109960.0,0.34661432]
[1756460536782,1.24901918,109980.0,109960.0,0.34348432]
[1756460537028,1.24901918,109980.0,109970.0,0.00313]
[1756460537247,1.24901918,109980.0,109970.0,0.00521]
[1756460537849,1.24970918,109980.0,109970.0,0.00521]
[1756460538376,0.21381595,109980.0,109970.0,0.00521]
[1756460538558,0.21550595,109980.0,109970.0,0.00521]
[1756460538774,1.25070918,109980.0,109970.0,0.00521]
[1756460538989,0.21581595,109980.0,109970.0,0.00521]
[1756460539190,1.25101918,109980.0,109970.0,0.18707778]
[1756460539398,1.25001918,109980.0,109970.0,0.00521]
[1756460539618,0.18186778,109970.0,109960.0,0.18192432]
[1756460539826,1.242639,109970.0,109960.0,0.34508432]
[1756460540029,1.24903069,109970.0,109960.0,0.34508432]